bitfinex/quotes_ETHUSD_20220311
["timestamp","ask_amount","ask_price","bid_price","bid_amount"]
[1647037044236,3.08483048,2576.5,2576.4,1.5391061]
[1647037047683,1.15959007,2576.5,2576.4,1.5391061]
[1647037048083,0.97023,2576.6,2576.4,1.5391061]
[1647037048384,0.97023,2576.6,2576.5,1.5391061]
[1647037048782,2.12915573,2576.6,2576.5,1.5391061]
[1647037050538,0.97023,2576.6,2576.5,1.5391061]
[1647037050740,2.12909722,2576.6,2576.5,1.5391061]
[1647037050939,0.97023,2576.6,2576.5,1.5391061]
[1647037051139,2.1290927,2576.6,2576.5,1.5391061]
[1647037051337,9.0102,2576.9,2576.5,1.5391061]
[1647037051638,1.4237619,2576.8,2576.7,2.25565773]
[1647037051841,1.4237619,2576.8,2576.7,2.67876383]
[1647037053141,1.4237619,2576.8,2576.7,3.64872383]
[1647037054585,1.4237619,2576.8,2576.7,9.67140707]
[1647037055185,0.2649128,2576.8,2576.7,9.67140707]
[1647037055385,1.42319248,2576.8,2576.7,9.67140707]
[1647037055586,1.42319248,2576.8,2576.7,8.70144707]
[1647037055985,1.42319248,2576.8,2576.7,3.60679098]
[1647037056985,1.42319248,2576.8,2576.6,1.02372649]
[1647037057237,0.2649128,2576.8,2576.6,1.02372649]
[1647037057640,0.2649128,2576.8,2576.6,1.02452649]
[1647037057838,0.34310351,2576.6,2576.5,0.97025]
[1647037059739,0.26554697,2576.6,2576.5,0.97025]
[1647037070286,0.25694255,2576.6,2576.5,0.97025]
[1647037071486,0.4862596,2576.8,2576.5,0.97025]
[1647037075982,1.10583273,2576.7,2576.6,0.47725815]
[1647037078188,1.10583273,2576.7,2576.5,0.47872715]
[1647037078489,0.23832953,2576.6,2576.5,0.47872715]
[1647037081631,0.23832953,2576.6,2576.5,1.19063815]
[1647037081831,0.23832953,2576.6,2576.5,0.47872715]
[1647037085287,0.23832953,2576.6,2576.5,1.19063815]
[1647037085486,0.23832953,2576.6,2576.5,0.47872715]
[1647037087636,0.4862596,2576.8,2576.5,0.47872715]
[1647037087835,0.39198802,2576.8,2576.5,0.47872715]
[1647037088038,0.23294624,2576.6,2576.5,0.47708356]
[1647037088238,0.23497631,2576.6,2576.5,0.47708356]
[1647037088837,3.74506478,2576.6,2576.5,0.47708356]
[1647037089837,3.74506478,2576.6,2576.5,1.18899456]
[1647037091478,2.05111695,2576.6,2576.5,1.18899456]
[1647037092684,2.05111695,2576.6,2576.5,0.47708356]
[1647037098138,2.05111695,2576.6,2576.5,0.89982232]
[1647037098139,3.21237137,2576.6,2576.5,0.89982232]
[1647037099785,4.88123951,2576.6,2576.5,0.89982232]
[1647037101286,4.92249738,2576.6,2576.5,0.42273876]
[1647037101488,4.92249738,2576.6,2576.2,0.711911]
[1647037101685,5.89509724,2576.5,2576.2,0.711911]
[1647037101886,1.16125442,2576.4,2576.2,0.711911]
[1647037102134,1.16328449,2576.4,2576.2,0.711911]
[1647037102340,1.16328449,2576.4,2576.3,0.08162946]
[1647037102541,1.16328449,2576.4,2576.3,0.50436822]
[1647037102542,0.00203007,2576.4,2576.3,0.50436822]
[1647037102937,0.00203007,2576.4,2576.3,0.50427825]
[1647037103941,0.00203007,2576.4,2576.3,1.21524304]
[1647037104340,0.00203007,2576.4,2576.3,0.50427825]
[1647037104542,0.00203007,2576.4,2576.3,1.21524491]
[1647037104742,1.16367391,2576.4,2576.3,1.21524491]
[1647037107386,1.16367391,2576.4,2576.3,1.16524491]
[1647037110635,1.06367391,2576.4,2576.3,1.16524491]
[1647037110837,1.06570398,2576.4,2576.3,1.16524491]
[1647037111237,1.06570398,2576.4,2576.3,0.45427825]
[1647037111435,1.06570398,2576.4,2576.3,1.16621938]
[1647037111636,3.04160291,2576.5,2576.3,1.16621938]
[1647037111836,3.04363298,2576.5,2576.3,1.71373059]
[1647037116785,3.04363298,2576.5,2576.4,1.05518068]
[1647037117735,0.97216007,2576.5,2576.4,1.05518068]
[1647037123994,0.00203007,2576.5,2576.4,1.05518068]
[1647037130683,0.00203007,2576.5,2576.4,1.44067003]
[1647037131687,0.00103985,2576.5,2576.4,1.44067003]
[1647037140933,1.14962006,2576.7,2576.4,1.44067003]
[1647037141133,0.00203007,2576.5,2576.4,3.96518068]
[1647037145287,0.00203007,2576.5,2576.4,7.46518068]
[1647037145487,0.00203007,2576.5,2576.4,3.96518068]
[1647037145988,0.05600138,2576.9,2576.4,4.91439535]
[1647037146189,0.05600138,2576.9,2576.7,1.05518068]
[1647037146390,5.6443,2577.3,2576.8,2.02505068]
[1647037146391,0.05051262,2577.2,2576.8,2.02505068]
[1647037146592,0.01644514,2577.0,2576.9,1.98623129]
[1647037147441,0.05051262,2577.2,2576.9,1.98623129]
[1647037147639,0.05051262,2577.2,2577.1,2.02514068]
[1647037156636,0.05199262,2577.2,2577.1,1.05518068]
[1647037160993,0.05199262,2577.2,2577.1,1.44144603]
[1647037161194,1.19819538,2577.2,2577.1,1.44144603]
[1647037165539,1.19819538,2577.2,2577.1,7.17754202]
[1647037165741,0.00148,2577.2,2577.1,7.17754202]
[1647037166184,1.18691364,2577.2,2577.1,7.17754202]
[1647037166386,0.00148,2577.2,2577.1,7.17754202]
[1647037166587,1.18661596,2577.2,2577.1,7.17754202]
[1647037166786,0.00148,2577.2,2577.1,7.17754202]
[1647037166985,1.18581412,2577.2,2577.1,7.17754202]
[1647037167189,0.00068,2577.2,2577.1,7.17754202]
[1647037169396,1.18581412,2577.2,2577.1,8.07111863]
[1647037170541,0.00068,2577.2,2577.1,8.07111863]
[1647037171141,1.18581412,2577.2,2577.1,8.07111863]
[1647037171542,0.00068,2577.2,2577.1,7.17754202]
[1647037172248,0.96973,2577.6,2577.2,0.96976]
[1647037172446,0.96973,2577.6,2577.4,1.05518068]
[1647037172645,0.05518065,2577.6,2577.5,4.8770588]
[1647037174483,0.05518065,2577.6,2577.5,6.8165388]
[1647037175086,1.93948,2577.8,2577.5,6.8165388]
[1647037175288,1.93948,2577.8,2577.7,1.05518068]
[1647037175491,1.92151852,2578.1,2577.7,4.5435878]
[1647037175492,1.22488275,2578.1,2577.7,4.5435878]
[1647037175686,1.22488275,2578.1,2577.8,3.4723487]
[1647037175887,0.01708275,2578.1,2578.0,0.96955]
[1647037176486,0.5,2578.2,2578.0,0.96955]
[1647037176687,0.00427111,2578.1,2578.0,0.96955]
[1647037176892,0.00427111,2578.1,2578.0,1.93905]
[1647037177146,0.00427111,2578.1,2578.0,0.05318113]
[1647037177543,0.5,2578.2,2578.0,0.05318113]
[1647037177544,1.47234535,2578.2,2578.0,0.05318113]
[1647037178543,1.4695,2578.2,2578.0,0.05318113]
[1647037178942,2.44205255,2578.2,2578.0,0.05318113]
[1647037179743,0.05377264,2578.1,2577.6,1.93949]
[1647037179942,1.01117593,2577.9,2577.6,1.93949]
[1647037180142,2.95090593,2577.9,2577.6,1.93949]
[1647037180343,2.94702635,2577.9,2577.6,1.93949]
[1647037180543,0.90561734,2577.8,2577.6,1.93949]
[1647037181187,1.87548734,2577.8,2577.6,1.93949]
[1647037181486,0.97425601,2577.8,2577.6,1.93949]
[1647037182192,0.96987,2577.8,2577.6,1.93949]
[1647037182390,0.97425601,2577.8,2577.6,1.93949]
[1647037183189,1.10164221,2577.7,2577.6,1.93949]
[1647037183790,0.91987,2577.8,2577.6,1.93949]
[1647037183990,0.91987,2577.8,2577.7,0.00982962]
[1647037184191,1.98105843,2577.9,2577.7,0.00982962]
[1647037184490,0.0419478,2577.8,2577.7,0.00982962]
[1647037185143,0.0419478,2577.8,2577.7,0.97961962]
[1647037187139,0.39153904,2577.6,2577.3,2.18975]
[1647037187343,0.0419478,2577.8,2577.3,1.93975]
[1647037187344,0.58125904,2577.7,2577.3,1.93975]
[1647037187544,0.04628362,2577.6,2577.3,1.93975]
[1647037188146,1.01614362,2577.6,2577.3,1.93975]
[1647037188386,1.01614362,2577.6,2577.4,0.96986]
[1647037188592,1.02054498,2577.6,2577.4,0.96986]
[1647037189488,1.01614362,2577.6,2577.4,0.96986]
[1647037189688,1.0203997,2577.6,2577.4,0.96986]
[1647037190588,1.01614362,2577.6,2577.4,0.96986]
[1647037190789,1.0203997,2577.6,2577.4,0.96986]
[1647037191791,1.01614362,2577.6,2577.4,0.96986]
[1647037191989,1.01614362,2577.6,2577.1,0.1938]
[1647037191990,0.04258576,2577.4,2577.1,0.1938]
[1647037192241,1.08073233,2577.3,2577.2,0.49888161]
[1647037195445,1.08073233,2577.3,2576.8,1.862255]
[1647037195643,1.01552988,2577.2,2576.8,1.862255]
[1647037196486,1.01552988,2577.2,2577.1,0.97006]
[1647037196687,1.01552988,2577.2,2576.8,1.862255]
[1647037197194,1.00494563,2577.2,2576.8,1.862255]
[1647037197993,1.00494563,2577.2,2576.6,0.57941911]
[1647037198192,1.97506563,2577.2,2576.6,0.57941911]
[1647037198394,1.97506563,2577.2,2576.9,0.97013]
[1647037198594,0.9701384,2577.0,2576.9,0.97013]
[1647037200641,1.9402684,2577.0,2576.8,1.94018]
[1647037201539,1.9402684,2577.0,2576.9,0.97013]
[1647037205093,1.9402684,2577.0,2576.5,0.0885927]
[1647037205292,1.9402684,2577.0,2576.5,0.09240774]
[1647037206293,1.9402684,2577.0,2576.5,0.0885927]
[1647037206494,1.9402684,2577.0,2576.8,1.94018]
[1647037207135,0.73511959,2577.0,2576.8,1.94018]
[1647037207345,1.98567358,2577.2,2577.0,0.9701]
[1647037210449,1.98567358,2577.2,2576.8,1.94018]
[1647037211292,0.04960696,2577.0,2576.8,1.94018]
[1647037211488,1.98994846,2577.0,2576.8,1.714314]
[1647037211889,1.9403415,2577.0,2576.8,1.714314]
[1647037212792,0.97017,2577.0,2576.8,1.714314]
[1647037215348,0.97017,2577.0,2576.9,0.46734029]
[1647037215547,2.08179377,2577.0,2576.9,0.46734029]
[1647037217954,0.97017,2577.0,2576.9,0.46734029]
[1647037219190,2.07765416,2577.0,2576.9,0.46734029]
[1647037220090,0.97017,2577.0,2576.9,0.46734029]
[1647037222847,2.07808242,2577.0,2576.9,0.46734029]
[1647037224750,2.06749788,2577.0,2576.9,0.46734029]
[1647037226493,2.91467854,2577.4,2577.0,0.97005]
[1647037226692,5.058397,2577.9,2577.0,0.97005]
[1647037226693,10.91841852,2577.7,2577.0,0.97005]
[1647037226893,10.2047,2577.7,2577.5,1.93953]
[1647037227094,1.1605,2577.7,2577.5,1.93953]
[1647037227301,0.429944,2577.8,2577.5,1.93953]
[1647037227695,0.429944,2577.8,2577.5,1.21573019]
[1647037228095,0.47895173,2577.8,2577.1,0.07073624]
[1647037228294,4.83291993,2577.8,2577.3,1.93989]
[1647037228695,0.82817807,2577.5,2577.3,1.93989]
[1647037229496,2.03667807,2577.5,2577.3,1.93989]
[1647037229739,2.75039659,2577.5,2577.3,1.93989]
[1647037229942,1.92221852,2577.5,2577.3,1.93989]
[1647037230138,0.97008,2577.4,2577.2,1.93997]
[1647037231741,0.97452471,2577.4,2577.2,1.93997]
[1647037232245,2.08374489,2577.4,2577.2,1.93997]
[1647037232451,1.68824323,2577.4,2577.2,1.93997]
[1647037232647,0.97008,2577.4,2577.2,1.93997]
[1647037232849,0.97452471,2577.4,2577.2,1.93997]
[1647037233050,0.92452471,2577.4,2577.2,1.93997]
[1647037233889,0.92008,2577.4,2577.2,1.93997]
[1647037234093,0.92421779,2577.4,2577.2,1.93997]
[1647037235092,0.92008,2577.4,2577.2,1.93997]
[1647037235291,0.92421779,2577.4,2577.2,1.93997]
[1647037236290,0.92008,2577.4,2577.2,1.93997]
[1647037236490,0.92294303,2577.4,2577.2,1.93997]
[1647037237342,0.92008,2577.4,2577.2,1.93997]
[1647037237746,0.9242455,2577.4,2577.2,1.93997]
[1647037238543,0.92008,2577.4,2577.2,1.93997]
[1647037238946,0.9242455,2577.4,2577.2,1.93997]
[1647037239543,0.9242455,2577.4,2577.2,1.88764]
[1647037239944,0.92008,2577.4,2577.2,1.88764]
[1647037240144,0.9242455,2577.4,2577.2,1.88764]
[1647037240990,0.92008,2577.4,2577.2,1.88764]
[1647037241391,0.92424144,2577.4,2577.2,1.88764]
[1647037242199,0.92008,2577.4,2577.2,1.88764]
[1647037242597,0.92424144,2577.4,2577.2,1.88764]
[1647037243396,0.92008,2577.4,2577.2,1.88764]
[1647037243596,0.92424144,2577.4,2577.2,1.88764]
[1647037244650,0.92008,2577.4,2577.2,1.88764]
[1647037244838,0.92434118,2577.4,2577.2,1.88764]
[1647037245240,0.92434118,2577.4,2577.2,2.85752]
[1647037245840,0.92008,2577.4,2577.2,2.85752]
[1647037246342,0.92434118,2577.4,2577.2,2.85752]
[1647037246541,0.92434118,2577.4,2577.3,0.52528004]
[1647037246944,1.98102074,2577.4,2577.3,0.52528004]
[1647037247143,1.97675956,2577.4,2577.3,0.52528004]
[1647037247944,0.92008,2577.4,2577.3,0.52528004]
[1647037248246,1.97644946,2577.4,2577.3,0.52528004]
[1647037248490,0.92008,2577.4,2577.3,0.52528004]
[1647037248690,1.97650288,2577.4,2577.3,0.52528004]
[1647037248892,0.92008,2577.4,2577.3,0.52528004]
[1647037249091,1.97649332,2577.4,2577.3,1.51900833]
[1647037249290,1.9764925,2577.4,2577.3,1.51900833]
[1647037249492,1.97633738,2577.4,2577.3,1.51900833]
[1647037249692,1.97631718,2577.4,2577.3,1.51900833]
[1647037249892,0.92008,2577.4,2577.3,1.51900833]
[1647037250092,1.97631789,2577.4,2577.3,1.51900833]
[1647037250293,0.92008,2577.4,2577.3,1.51900833]
[1647037250493,1.97619151,2577.4,2577.3,1.51900833]
[1647037250693,0.92008,2577.4,2577.3,1.51900833]
[1647037250898,1.9761942,2577.4,2577.3,0.52528004]
[1647037251096,0.92008,2577.4,2577.3,0.52528004]
[1647037251397,1.97607269,2577.4,2577.3,0.52528004]
[1647037251596,0.92008,2577.4,2577.3,0.52528004]
[1647037251800,1.97607299,2577.4,2577.3,0.52528004]
[1647037251998,0.92008,2577.4,2577.3,0.52528004]
[1647037252246,1.97598749,2577.4,2577.3,0.52528004]
[1647037252448,0.92008,2577.4,2577.3,0.52528004]
[1647037252646,1.97597532,2577.4,2577.3,0.52528004]
[1647037252846,0.92008,2577.4,2577.3,0.52528004]
[1647037253050,1.97600938,2577.4,2577.3,0.52528004]
[1647037253247,1.97601622,2577.4,2577.3,0.52528004]
[1647037253451,1.97601622,2577.4,2577.3,5.04353779]
[1647037253849,0.92008,2577.4,2577.3,5.04353779]
[1647037254248,1.97601145,2577.4,2577.3,6.0154023]
[1647037254850,1.97602565,2577.4,2577.3,6.0154023]
[1647037257091,1.97602565,2577.4,2577.3,5.04353779]
[1647037265597,0.91907612,2577.4,2577.3,5.05353779]
[1647037265998,1.97554466,2577.4,2577.3,5.10707377]
[1647037266298,0.96993,2577.6,2577.4,0.96988]
[1647037266500,0.96993,2577.6,2577.2,2.36654079]
[1647037266501,0.96993,2577.6,2577.5,3.7474246]
[1647037268358,0.96993,2577.6,2577.4,0.96988]
[1647037270160,0.97278968,2577.6,2577.4,0.96988]
[1647037270560,0.97278968,2577.6,2577.2,0.884129]
[1647037270561,1.01371852,2577.5,2577.2,0.884129]
[1647037270762,1.68374852,2577.4,2577.2,0.884129]
[1647037271800,0.97003,2577.4,2577.2,0.884129]
[1647037272601,0.97288968,2577.4,2577.2,0.884129]
[1647037273404,0.97003,2577.4,2577.2,0.884129]
[1647037273603,0.97288968,2577.4,2577.2,0.884129]
[1647037274660,0.97003,2577.4,2577.2,0.884129]
[1647037274848,1.6866082,2577.4,2577.2,0.884129]
[1647037275250,0.9700381,2577.3,2577.0,0.97004]
[1647037275651,1.9400881,2577.3,2577.0,0.97004]
[1647037277252,5.80263887,2577.3,2577.0,0.97004]
[1647037279992,5.80263887,2577.3,2577.0,0.98004]
[1647037280194,5.80263887,2577.3,2577.0,1.97004]
[1647037280396,5.80263887,2577.3,2577.0,1.98004]
[1647037282848,5.55312434,2577.3,2577.0,1.98004]
[1647037284846,5.55312434,2577.3,2577.0,0.98004]
[1647037285046,5.55312434,2577.3,2577.0,0.97004]
[1647037285247,4.58308624,2577.3,2577.0,0.97004]
[1647037286395,1.02388415,2577.2,2577.0,0.97004]
[1647037286598,1.02388415,2577.2,2577.1,0.55825416]
[1647037286796,1.99390415,2577.2,2576.8,1.10155868]
[1647037286996,0.97002,2577.2,2576.8,1.10155868]
[1647037287205,0.97002,2577.2,2576.7,1.0]
[1647037287400,0.97002,2577.2,2577.0,0.97004]
[1647037287800,0.97002,2577.2,2576.7,1.0]
[1647037287801,1.0212097,2577.2,2576.7,1.0]
[1647037288002,1.0212097,2577.2,2576.5,0.26574899]
[1647037288202,1.0212097,2577.2,2576.5,0.26956019]
[1647037288399,1.0212097,2577.2,2576.7,0.97013]
[1647037288602,1.0212097,2577.2,2576.7,1.97013]
[1647037289001,0.9701238,2577.0,2576.7,1.0]
[1647037289201,1.9403438,2577.0,2576.7,1.0]
[1647037290546,0.04262114,2576.9,2576.7,1.0]
[1647037290748,1.98307254,2576.9,2576.7,1.0]
[1647037291048,0.04295489,2576.8,2576.5,2.13426]
[1647037291248,0.04295489,2576.8,2576.5,1.94026]
[1647037291447,0.04295489,2576.8,2576.2,0.71060027]
[1647037291850,0.04295489,2576.8,2576.5,0.00426055]
[1647037291851,0.9702371,2576.7,2576.5,0.00426055]
[1647037292650,0.9702371,2576.7,2576.0,1.71060027]
[1647037292952,1.9408048,2576.5,2576.0,1.9704]
[1647037293151,1.9408048,2576.5,2576.0,1.0]
[1647037293152,1.98944834,2576.5,2576.0,1.0]
[1647037293398,0.04301756,2576.4,2576.0,1.0]
[1647037294199,0.04301756,2576.4,2576.1,0.00426072]
[1647037294598,1.01346756,2576.4,2576.1,0.00426072]
[1647037294802,0.04535661,2576.2,2576.1,0.00426072]
[1647037295001,0.01222283,2576.2,2576.1,0.01426072]
[1647037295201,0.97045,2576.4,2576.1,0.01]
[1647037295401,0.97045,2576.4,2576.1,0.00408664]
[1647037296203,0.970424,2576.3,2576.1,0.00408664]
[1647037296404,1.940844,2576.3,2576.0,1.9704]
[1647037296602,1.940844,2576.3,2576.1,0.00378728]
[1647037297455,1.940844,2576.3,2576.0,1.0]
[1647037297848,1.940844,2576.3,2576.1,0.0037873]
[1647037298250,0.51592589,2575.7,2575.6,1.35885728]
[1647037298449,0.51592589,2575.7,2575.6,1.36885728]
[1647037298648,0.51592589,2575.7,2575.6,1.94698318]
[1647037301789,0.51592589,2575.7,2575.6,1.34339818]
[1647037302394,0.51592589,2575.7,2575.6,3.28427818]
[1647037304196,0.51592589,2575.7,2575.6,3.28182502]
[1647037306843,0.51592589,2575.7,2575.6,3.87504204]
[1647037310294,0.51592589,2575.7,2575.6,3.86504204]
[1647037310695,0.51592589,2575.7,2575.6,3.8749915]
[1647037314951,2.76269034,2576.0,2575.6,3.8749915]
[1647037315151,2.76269034,2576.0,2575.8,0.75281912]
[1647037315350,2.76269034,2576.0,2575.9,1.3459856]
[1647037315553,2.76269034,2576.0,2575.9,1.3559856]
[1647037319001,2.76269034,2576.0,2575.9,1.3459856]
[1647037319670,2.76269034,2576.0,2575.9,1.3559856]
[1647037321964,2.76269034,2576.0,2575.9,6.14586347]
[1647037325302,3.77914548,2576.0,2575.9,6.14586347]
[1647037325501,3.77914548,2576.0,2575.9,6.13586347]
[1647037327553,3.77914548,2576.0,2575.9,5.54269699]
[1647037328556,4.07914548,2576.0,2575.9,5.54269699]
[1647037328755,16.99914548,2576.0,2575.9,5.54269699]
[1647037329557,16.02862148,2576.0,2575.9,4.95157866]
[1647037329953,16.02862148,2576.0,2575.9,0.18078557]
[1647037330155,16.02862148,2576.0,2575.2,3.98066726]
[1647037330357,2.9124215,2575.7,2575.3,0.56843773]
[1647037330896,2.9124215,2575.7,2575.1,1.07324489]
[1647037330897,1.98728244,2575.6,2575.4,0.56843773]
[1647037331099,0.9708273,2575.6,2575.5,0.56843773]
[1647037331303,2.95112623,2575.6,2575.5,0.56843773]
[1647037331500,6.45112623,2575.6,2575.2,0.56843773]
[1647037331698,6.41028938,2575.6,2575.3,0.56843773]
[1647037331897,6.41028938,2575.6,2575.4,0.56843773]
[1647037332098,3.5,2575.5,2575.1,1.07324489]
[1647037332304,3.5,2575.5,2575.2,0.56853758]
[1647037332504,3.5,2575.5,2575.4,0.00156435]
[1647037332904,4.51228361,2575.5,2575.4,0.00156435]
[1647037333504,4.51228361,2575.5,2575.2,0.56853758]
[1647037333706,0.9708456,2575.4,2575.3,0.00442074]
[1647037333907,4.4708456,2575.4,2575.3,0.00442074]
[1647037334103,4.4708456,2575.4,2575.3,0.57295832]
[1647037334304,4.4708456,2575.4,2575.3,0.00442074]
[1647037334503,4.4708456,2575.4,2575.3,0.57295832]
[1647037334750,4.4708456,2575.4,2575.3,0.56853758]
[1647037334952,0.97085,2575.5,2575.3,0.56853758]
[1647037335151,2.91025338,2575.6,2575.5,0.72382916]
[1647037335350,6.3369051,2575.6,2575.5,1.29236674]
[1647037335554,5.36827302,2575.6,2575.5,1.29236674]
[1647037335753,5.36850275,2575.6,2575.5,1.29236674]
[1647037336649,2.00128774,2575.6,2575.5,1.29236674]
[1647037337051,1.03049644,2575.6,2575.5,1.29236674]
[1647037337854,1.33049644,2575.6,2575.5,1.29236674]
[1647037338899,1.3839504,2575.6,2575.5,1.29236674]
[1647037339298,4.8839504,2575.6,2575.5,1.29236674]
[1647037340197,4.8839504,2575.6,2575.4,0.00428806]
[1647037340497,11.30045202,2575.5,2575.4,0.00428806]
[1647037340696,11.30045202,2575.5,2575.1,0.0195479]
[1647037340898,0.9709077,2575.4,2575.1,0.0195479]
[1647037341098,6.76995558,2575.3,2575.1,0.0195479]
[1647037342147,7.74087558,2575.3,2575.1,0.0195479]
[1647037342353,4.91883055,2575.2,2574.7,0.98797674]
[1647037342554,4.91883055,2575.2,2574.6,5.06494467]
[1647037342752,5.88975315,2575.2,2574.6,3.89104467]
[1647037342953,7.83157315,2575.2,2574.6,3.89104467]
[1647037343352,7.83157315,2575.2,2574.7,0.9709]
[1647037343953,7.83157315,2575.2,2574.6,2.94183]
[1647037344158,0.97091,2575.1,2574.6,2.94183]
[1647037344355,4.47091,2575.1,2574.6,3.91266]
[1647037344554,4.47091,2575.1,2574.5,1.5241933]
[1647037344555,0.05488573,2575.0,2574.5,1.5241933]
[1647037344853,0.05488573,2575.0,2574.8,0.00427664]
[1647037345053,0.05488573,2575.0,2574.9,0.97087]
[1647037345354,0.97089,2575.0,2574.5,1.5241933]
[1647037345555,5.68233874,2575.0,2574.5,1.5241933]
[1647037346006,5.68233874,2575.0,2574.5,1.54583863]
[1647037346206,5.68233874,2575.0,2574.8,1.9417]
[1647037346607,5.68233874,2575.0,2574.5,1.5241933]
[1647037346809,5.68233874,2575.0,2574.4,0.94921467]
[1647037347611,5.68233874,2575.0,2574.4,1.52434963]
[1647037348211,6.65332984,2575.0,2574.4,1.52434963]
[1647037348413,6.65332984,2575.0,2574.6,1.94173]
[1647037348910,1.942,2574.8,2574.6,1.94173]
[1647037349317,1.942,2574.8,2574.7,0.00441405]
[1647037349849,9.87542564,2574.8,2574.7,0.00441405]
[1647037350251,9.87542564,2574.8,2574.6,1.94173]
[1647037350252,6.37542564,2574.8,2574.6,1.94173]
[1647037350547,6.37542564,2574.8,2574.6,1.94614408]
[1647037351548,6.37542564,2574.8,2574.6,1.94173]
[1647037351746,6.37542564,2574.8,2574.6,1.94614411]
[1647037351951,3.5,2574.7,2574.6,1.94614411]
[1647037352152,4.4947,2574.7,2574.6,1.94614411]
[1647037352353,9.90729662,2574.7,2574.6,0.00441411]
[1647037352552,6.40729662,2574.7,2574.6,0.00441411]
[1647037352752,6.40729662,2574.7,2574.4,2.6535072]
[1647037352951,6.40729662,2574.7,2574.4,1.94198]
[1647037352952,7.37833662,2574.7,2574.4,1.94198]
[1647037353153,6.40726702,2574.7,2574.4,1.89198]
[1647037353394,6.40726702,2574.7,2574.4,2.6035072]
[1647037353595,9.90726702,2574.7,2574.4,2.6035072]
[1647037353796,6.40726702,2574.7,2574.4,2.6035072]
[1647037353996,6.40726702,2574.7,2574.4,1.89198]
[1647037354197,9.90726702,2574.7,2574.4,1.89623706]
[1647037354395,9.90726702,2574.7,2574.4,2.60776426]
[1647037355198,8.21229847,2574.7,2574.4,2.6035072]
[1647037355397,8.21229847,2574.7,2574.4,2.60776426]
[1647037356400,8.21229847,2574.7,2574.4,2.6035072]
[1647037356600,8.21229847,2574.7,2574.4,2.60776426]
[1647037356801,8.21229847,2574.7,2574.4,1.89623706]
[1647037357454,8.21229847,2574.7,2574.4,1.89198]
[1647037357851,8.21229847,2574.7,2574.4,2.60761662]
[1647037358252,8.21229847,2574.7,2574.4,1.89608942]
[1647037358752,8.21229847,2574.7,2574.4,1.89198]
[1647037358952,8.21229847,2574.7,2574.4,1.89608942]
[1647037359956,8.21229847,2574.7,2574.4,1.89198]
[1647037360153,8.21229847,2574.7,2574.4,1.89608942]
[1647037360353,8.21229847,2574.7,2574.5,0.48135304]
[1647037360552,3.5,2574.6,2574.5,0.48135304]
[1647037360751,7.38357688,2574.6,2574.5,0.48135304]
[1647037362304,7.42963717,2574.6,2574.5,0.48135304]
[1647037363005,7.42963717,2574.6,2574.4,0.00412658]
[1647037363204,3.5,2574.5,2574.4,0.00412658]
[1647037363505,3.5,2574.5,2574.3,0.48135304]
[1647037363707,0.48135304,2574.3,2574.0,1.0927789]
[1647037363905,0.48135304,2574.3,2574.1,0.46814891]
[1647037365169,0.48135304,2574.3,2574.1,1.43926891]
[1647037365170,3.49582741,2574.2,2574.1,1.43926891]
[1647037365551,3.49582741,2574.2,2574.1,0.46814891]
[1647037365949,3.49582741,2574.2,2573.9,0.46814891]
[1647037366149,1.45245304,2574.3,2574.0,0.46814891]
[1647037366350,3.54426994,2574.2,2574.1,0.46814891]
[1647037366552,4.51555724,2574.2,2574.1,0.46814891]
[1647037366754,5.4426373,2574.2,2574.1,0.46814891]
[1647037366951,0.05012831,2574.0,2573.7,0.1942]
[1647037367151,0.05012831,2574.0,2573.8,0.46793417]
[1647037368155,1.02140831,2574.0,2573.8,0.46793417]
[1647037368401,1.02140831,2574.0,2573.8,1.43920417]
[1647037368601,1.02140831,2574.0,2573.9,0.46793417]
[1647037369001,1.02140831,2574.0,2573.8,0.47199425]
[1647037369602,1.02140831,2574.0,2573.8,0.46793417]
[1647037369801,1.02140831,2574.0,2573.8,0.47233744]
[1647037370002,4.52140831,2574.0,2573.9,0.46793417]
[1647037370203,5.49274981,2574.0,2573.9,0.41793417]
[1647037371003,0.97136,2573.9,2573.8,0.00440324]
[1647037371205,4.47136,2573.9,2573.8,0.00440324]
[1647037372004,4.47136,2573.9,2573.7,0.1942]
[1647037372259,3.5,2573.8,2573.7,0.0044033]
[1647037373159,4.4714,2573.8,2573.5,0.97139]
[1647037373358,5.4427933,2573.8,2573.6,0.00427125]
[1647037374160,3.5,2573.7,2573.6,0.00427125]
[1647037374361,1.9427933,2573.8,2573.5,1.68190365]
[1647037374561,1.9427933,2573.8,2573.6,0.00427128]
[1647037374762,3.5,2573.7,2573.6,0.00427128]
[1647037375162,1.9427933,2573.8,2573.6,0.00427128]
[1647037375565,1.9427933,2573.8,2573.5,0.97139]
[1647037375763,1.9427933,2573.8,2573.6,0.00427128]
[1647037376815,1.9427933,2573.8,2573.5,0.97139]
[1647037377014,1.9427933,2573.8,2573.6,0.00375757]
[1647037377619,1.9427933,2573.8,2573.6,0.97949495]
[1647037378019,1.9427933,2573.8,2573.6,0.97573738]
[1647037378322,1.9427933,2573.8,2573.6,0.97949495]
[1647037379117,1.9427933,2573.8,2573.6,0.97573738]
[1647037379518,1.9427933,2573.8,2573.6,0.97949495]
[1647037380362,1.9427933,2573.8,2573.6,0.97573738]
[1647037380568,1.9427933,2573.8,2573.6,0.97952549]
[1647037381162,5.4427933,2573.8,2573.6,0.97952549]
[1647037381562,5.4427933,2573.8,2573.3,2.65327365]
[1647037381763,1.9427933,2573.8,2573.6,0.00381705]
[1647037382766,1.9427933,2573.8,2573.4,1.85295458]
[1647037383166,1.9427933,2573.8,2573.6,0.00381705]
[1647037383813,5.4427933,2573.8,2573.6,0.00381705]
[1647037384011,5.4427933,2573.8,2573.4,1.85295458]
[1647037384213,5.4427933,2573.8,2573.6,0.00381161]
[1647037384612,1.9427933,2573.8,2573.6,0.00381161]
[1647037385213,1.9427933,2573.8,2573.4,2.82439458]
[1647037385214,5.4427933,2573.8,2573.4,2.82439458]
[1647037385413,5.4427933,2573.8,2573.6,0.00380864]
[1647037385613,1.9427933,2573.8,2573.6,0.00380864]
[1647037386417,1.9427933,2573.8,2573.4,2.82439458]
[1647037386613,1.9427933,2573.8,2573.6,0.00380864]
[1647037387463,5.4427933,2573.8,2573.4,2.82439458]
[1647037387862,5.4427933,2573.8,2573.6,0.00380954]
[1647037388660,5.4427933,2573.8,2573.4,0.71051365]
[1647037389063,5.4427933,2573.8,2573.6,0.00380992]
[1647037389861,3.5,2573.7,2573.3,0.71051365]
[1647037390063,0.9714898,2573.6,2573.3,0.71051365]
[1647037390263,1.94298,2573.5,2573.3,2.1171463]
[1647037390464,1.94298,2573.5,2573.4,0.43516265]
[1647037392115,1.94298,2573.5,2573.4,1.1456763]
[1647037394017,5.44298,2573.5,2573.4,1.1456763]